bitfinex/quotes_ETHUSD_20250801
["timestamp","ask_amount","ask_price","bid_price","bid_amount"]
[1754057955694,4.661,3632.4,3631.3,2.78137305]
[1754057955892,2.3833,3632.3,3631.1,0.01]
[1754057956406,4.661,3632.4,3632.0,2.75330179]
[1754057956608,5.13613546,3632.7,3632.1,2.75322662]
[1754057956909,4.661,3632.6,3632.1,2.7532178]
[1754057957111,2.3833,3632.7,3632.1,2.7532178]
[1754057957112,4.66,3632.5,3632.1,2.7531903]
[1754057957277,4.66,3632.5,3631.9,2.75337935]
[1754057957612,2.3833,3632.7,3631.5,4.74451865]
[1754057957613,4.66,3632.4,3632.3,2.75300852]
[1754057957784,2.3833,3633.1,3631.7,1.9909]
[1754057957989,4.66,3633.0,3631.8,1.9909]
[1754057958184,4.69202313,3632.9,3632.2,2.75308837]
[1754057958386,1.9394,3632.9,3631.7,2.7535314]
[1754057958716,4.66,3633.0,3631.7,2.7535314]
[1754057958717,4.66,3632.8,3631.7,1.9909]
[1754057958915,4.66,3632.8,3631.8,2.75345558]
[1754057959114,7.41272839,3632.8,3632.2,2.75314365]
[1754057959322,4.66,3632.8,3632.2,2.75314365]
[1754057959518,4.66,3632.8,3631.7,1.9909]
[1754057959519,4.66,3632.8,3632.6,2.75283861]
[1754057959828,2.75225725,3633.4,3632.8,2.75267382]
[1754057959996,4.659,3633.3,3632.4,1.9909]
[1754057960194,7.41132902,3633.3,3632.6,2.75278437]
[1754057960396,0.4439,3633.5,3632.4,1.9909]
[1754057960587,4.658,3633.4,3633.0,2.7524891]
[1754057960783,4.658,3633.4,3632.5,2.75288189]
[1754057960982,4.658,3633.4,3632.4,1.9909]
[1754057960983,6.613,3633.6,3633.1,2.75244981]
[1754057961191,4.658,3633.5,3633.1,2.75244981]
[1754057961410,6.613,3633.6,3632.4,0.20296137]
[1754057961615,4.658,3633.5,3633.2,2.75236826]
[1754057961819,4.658,3633.5,3632.9,2.75256121]
[1754057962028,0.1376,3633.4,3633.0,2.75253894]
[1754057962205,4.7946,3633.4,3633.1,2.75247034]
[1754057962506,4.657,3633.3,3633.1,2.75247034]
[1754057962704,4.657,3633.3,3632.9,2.89021212]
[1754057962705,4.657,3633.3,3633.0,2.75252674]
[1754057962986,4.657,3633.3,3633.0,2.75254192]
[1754057963186,0.47830493,3633.2,3632.3,0.2065118]
[1754057963424,2.3833,3633.2,3632.3,0.2065118]
[1754057963746,2.3833,3633.2,3632.3,0.002]
[1754057964035,4.656,3633.1,3632.5,2.75288947]
[1754057964331,0.1376,3632.9,3632.6,2.75283338]
[1754057964617,0.1376,3632.9,3632.4,2.89058306]
[1754057964618,0.1376,3632.9,3632.4,0.1376]
[1754057964822,0.03440872,3632.8,3632.3,0.002]
[1754057964997,0.1376,3632.5,3632.3,0.002]
[1754057965185,0.1376,3632.7,3632.3,2.75505193]
[1754057965503,0.1376,3632.7,3632.3,2.75505556]
[1754057965812,4.7916,3632.7,3632.3,0.002]
[1754057966113,4.7916,3632.7,3632.3,2.75505794]
[1754057966286,4.7916,3632.7,3632.4,2.75299436]
[1754057966627,4.7916,3632.7,3632.3,0.002]
[1754057966784,2.75284919,3632.6,3632.3,0.002]
[1754057966989,2.89053262,3632.5,3632.3,0.002]
[1754057967190,2.78741327,3632.4,3632.3,0.002]
[1754057967409,5.17071327,3632.4,3632.3,0.002]
[1754057967731,20.57643569,3632.4,3632.3,0.002]
[1754057967899,20.54202319,3632.4,3632.3,0.002]
[1754057968220,21.09202319,3632.4,3632.3,0.002]
[1754057968420,23.26685595,3632.4,3632.3,0.002]
[1754057968634,12.51313353,3632.4,3632.3,0.002]
[1754057968919,12.65073353,3632.4,3632.3,0.002]
[1754057970224,13.20073353,3632.4,3632.3,0.002]
[1754057970382,23.20073353,3632.4,3632.3,0.002]
[1754057970788,22.64973353,3632.4,3632.3,0.002]
[1754057971183,17.99873353,3632.4,3632.3,0.002]
[1754057971412,4.7886,3632.4,3632.3,0.002]
[1754057971616,0.1376,3632.4,3632.3,0.002]
[1754057971911,2.89060077,3632.4,3632.3,0.002]
[1754057972117,0.1376,3632.4,3632.3,0.002]
[1754057972286,4.65,3632.4,3632.3,1.9929]
[1754057972633,4.65,3632.4,3632.3,2.4416]
[1754057972924,4.65,3632.4,3632.3,1.9929]
[1754057973128,4.65,3632.4,3632.3,0.002]
[1754057973493,7.40300077,3632.4,3632.3,0.002]
[1754057973700,7.54060077,3632.4,3632.3,0.002]
[1754057973899,4.7876,3632.4,3632.3,0.002]
[1754057974503,4.7866,3632.4,3632.3,0.002]
[1754057974702,0.1376,3632.4,3632.3,0.002]
[1754057974987,4.7856,3632.4,3632.3,0.002]
[1754057976034,8.01010077,3632.4,3632.3,0.002]
[1754057976326,7.53860077,3632.4,3632.3,0.002]
[1754057976931,7.53760077,3632.4,3632.3,0.002]
[1754057977309,4.7846,3632.4,3632.3,0.002]
[1754057977623,7.53760077,3632.4,3632.3,0.002]
[1754057978129,10.51373554,3632.4,3632.3,0.002]
[1754057978522,2.75330396,3632.0,3631.9,0.002]
[1754057978823,7.53690396,3632.0,3631.9,0.002]
[1754057979228,0.1376,3632.0,3631.9,1.8719]
[1754057979402,4.645,3632.0,3631.9,2.3042]
[1754057979609,4.645,3632.0,3631.9,5.05757977]
[1754057980204,0.1376,3632.3,3631.9,5.05757977]
[1754057980205,4.645,3632.1,3632.0,2.75328851]
[1754057980407,20.07302401,3633.5,3632.0,2.3022]
[1754057980610,0.1376,3632.6,3632.1,1.8699]
[1754057980936,4.644,3632.5,3632.2,2.3022]
[1754057981496,4.644,3632.5,3632.0,0.1376]
[1754057981702,4.644,3632.5,3632.0,4.76079328]
[1754057982013,4.644,3632.5,3632.0,2.0075]
[1754057982211,4.644,3632.5,3631.9,0.1396]
[1754057982212,0.1376,3632.4,3631.9,0.1396]
[1754057982419,2.75320486,3632.2,3631.9,0.002]
[1754057982744,2.89090396,3632.0,3631.9,0.002]
[1754057982897,0.1376,3632.0,3631.9,0.002]
[1754057983097,2.89090396,3632.0,3631.9,0.002]
[1754057983426,3.96676607,3632.0,3631.9,0.002]
[1754057983739,4.43826607,3632.0,3631.9,0.002]
[1754057983938,6.38778236,3632.0,3631.9,0.002]
[1754057984150,2.75391055,3631.2,3631.1,0.01]
[1754057984330,7.39591055,3631.2,3631.1,0.01]
[1754057984501,2.75466916,3630.2,3630.1,0.01]
[1754057984701,2.75466916,3630.2,3629.5,0.4323]
[1754057984702,2.75550411,3629.1,3629.0,0.4323]
[1754057984900,2.75550411,3629.1,3628.2,1.8699]
[1754057984901,2.75573256,3628.8,3628.2,1.8699]
[1754057985228,4.642,3628.7,3628.2,1.8699]
[1754057985429,4.641,3628.6,3628.3,1.8699]
[1754057985633,4.641,3628.5,3628.3,4.62595304]
[1754057985941,4.641,3628.5,3628.1,0.1376]
[1754057986456,0.1376,3628.2,3627.5,2.0075]
[1754057986739,0.1376,3628.0,3627.6,2.75663132]
[1754057986904,0.1376,3628.0,3627.7,1.8699]
[1754057987104,0.1376,3628.0,3627.4,0.002]
[1754057987301,0.1376,3628.0,3627.4,0.1396]
[1754057987501,0.1376,3628.0,3627.4,2.89638098]
[1754057987747,0.1376,3628.0,3627.4,0.1396]
[1754057987916,4.641,3627.9,3627.4,0.1396]
[1754057988120,5.11886,3627.9,3627.4,0.002]
[1754057988305,15.87722242,3628.9,3627.5,2.3022]
[1754057988509,0.1376,3628.4,3627.9,0.1376]
[1754057988811,0.1376,3628.0,3627.5,2.0075]
[1754057989012,0.1376,3628.0,3627.9,2.75641555]
[1754057989213,2.3866,3628.6,3627.8,2.75643114]
[1754057989408,15.40572242,3628.9,3628.1,2.75619779]
[1754057989409,0.1376,3628.2,3628.1,2.75619779]
[1754057989609,0.1376,3628.2,3628.1,2.7562636]
[1754057989860,0.4715,3629.1,3628.2,2.75618764]
[1754057990063,4.641,3629.0,3628.1,2.4398]
[1754057990280,0.1376,3628.7,3628.3,2.75607946]
[1754057990548,0.1376,3628.7,3628.1,5.19605791]
[1754057990549,4.641,3628.6,3628.4,2.75596222]
[1754057990854,0.1376,3628.7,3628.6,2.75588381]
[1754057991154,4.641,3628.7,3628.5,2.4398]
[1754057991357,4.641,3628.8,3628.7,2.75580786]
[1754057991648,0.1376,3629.3,3628.7,2.3022]
[1754057991815,4.641,3629.2,3629.1,2.75550411]
[1754057992319,4.641,3629.3,3629.2,2.75542819]
[1754057992522,4.64,3629.3,3629.2,5.05755452]
[1754057992759,4.64,3629.4,3629.3,2.75534292]
[1754057993263,4.64,3629.4,3629.2,2.3022]
[1754057993442,4.64,3629.4,3629.3,2.75535227]
[1754057993862,4.64,3629.4,3629.3,4.62525227]
[1754057994163,0.1376,3629.6,3629.3,4.62525227]
[1754057994317,4.64,3630.2,3629.5,2.75520044]
[1754057994526,4.64,3630.2,3629.6,1.8699]
[1754057994720,4.64,3630.2,3629.7,2.75503819]
[1754057994919,5.1115,3630.2,3629.1,1.8699]
[1754057995150,0.03443431,3630.1,3629.7,2.75503045]
[1754057995340,5.1115,3630.2,3629.1,1.8699]
[1754057995557,0.03443431,3630.1,3629.1,1.8699]
[1754057995748,2.75480871,3630.1,3629.1,1.8699]
[1754057995942,2.7548643,3630.0,3629.2,2.75542819]
[1754057996369,2.75474504,3630.1,3629.4,2.75524919]
[1754057996592,2.75474504,3630.1,3629.1,1.8699]
[1754057996593,2.75474504,3630.1,3629.5,2.75519978]
[1754057996885,4.639,3630.0,3629.1,1.8699]
[1754057997045,4.639,3630.0,3629.4,2.75520811]
[1754057997370,4.639,3630.0,3629.1,1.8699]
[1754057997579,4.639,3630.0,3629.5,2.75519717]
[1754057997779,4.639,3630.0,3629.3,2.75528388]
[1754057997947,4.639,3630.0,3629.3,2.75529958]
[1754057997948,7.39384134,3630.0,3629.3,2.75529958]
[1754057998275,0.4715,3629.9,3628.5,4.8699]
[1754057998454,15.40572242,3630.3,3628.6,2.3022]
[1754057998635,4.638,3630.2,3629.4,2.75526249]
[1754057998841,2.32698196,3630.1,3629.6,2.75505005]
[1754057999072,4.638,3630.1,3629.4,2.75527635]
[1754057999273,2.75483086,3630.0,3629.3,3.18763505]
[1754057999463,7.39274958,3630.1,3629.4,2.75521575]
[1754057999840,4.638,3630.1,3629.5,2.75517317]
[1754058000075,5.42441902,3630.1,3629.2,1.8699]
[1754058000434,5.42441902,3630.1,3629.6,2.75507455]
[1754058000638,2.75444624,3630.5,3629.7,2.75503908]
[1754058000872,7.39152566,3630.4,3629.3,2.75534862]
[1754058001088,2.75465427,3630.3,3629.6,2.755075]
[1754058001288,2.3866,3630.5,3629.2,1.8699]
[1754058001600,0.55,3631.3,3629.2,1.8699]
[1754058001601,10.0,3631.1,3629.7,2.75504862]
[1754058001743,10.0,3631.1,3631.0,2.75406224]
[1754058001940,10.0,3631.1,3631.0,4.62396224]
[1754058002383,7.38950851,3631.8,3631.0,4.62396224]
[1754058002541,1.06243315,3631.7,3631.0,1.8699]
[1754058002749,4.646,3631.9,3631.0,1.8699]
[1754058002951,0.01,3631.9,3630.9,1.8699]
[1754058003281,4.68041724,3631.9,3630.9,1.8699]
[1754058003496,0.01,3631.9,3630.9,1.8699]
[1754058003654,0.01,3631.9,3631.4,2.75370506]
[1754058003854,0.7969657,3631.9,3631.5,2.7536803]
[1754058004050,0.7969657,3631.9,3631.8,2.75345558]
[1754058004051,0.01,3631.9,3631.8,2.75345558]
[1754058004246,0.01,3631.9,3631.8,4.62335558]
[1754058004453,0.01,3631.9,3631.8,5.19325558]
[1754058005266,0.0344144,3632.2,3631.4,1.8968]
[1754058005466,0.1376,3632.2,3631.6,0.1376]
[1754058005668,0.1376,3632.2,3631.7,2.75346378]
[1754058005909,0.1376,3632.2,3632.0,2.75328507]
[1754058006053,0.1376,3632.2,3631.8,2.3412]
[1754058006251,0.001,3632.8,3631.9,1.8968]
[1754058006493,0.1376,3632.5,3631.9,2.0344]
[1754058006807,0.1376,3632.5,3632.1,2.75317333]
[1754058007001,0.1376,3632.5,3632.0,2.75329334]
[1754058007167,0.1376,3632.5,3632.3,2.75304791]
[1754058007364,0.001,3632.8,3632.4,2.75300077]
[1754058007570,0.1376,3632.6,3632.4,2.75300077]
[1754058007781,0.1376,3632.6,3632.2,1.8968]
[1754058007996,0.1376,3632.6,3632.3,4.64986642]
[1754058008193,0.1376,3632.6,3632.3,2.3412]
[1754058008362,0.1386,3632.8,3632.4,5.09419996]
[1754058008688,0.001,3632.8,3632.7,2.75277341]
[1754058008913,0.001,3632.8,3632.7,2.91790114]
[1754058009194,0.001,3632.8,3632.7,5.23157341]
[1754058009378,0.001,3632.8,3632.7,5.25910114]
[1754058009577,0.001,3632.8,3632.7,5.23157341]
[1754058014322,0.001,3632.8,3632.7,9.41317341]
[1754058014504,0.001,3632.8,3632.7,9.85757341]
[1754058014903,0.001,3632.8,3632.7,9.41317341]
[1754058015111,0.001,3632.8,3632.7,7.51637341]
[1754058015835,0.001,3632.8,3632.7,4.7636]
[1754058016006,0.27735534,3632.8,3632.7,4.626]
[1754058016329,0.001,3632.8,3632.7,4.625]
[1754058016629,0.001,3632.8,3632.7,7.51537341]
[1754058016928,0.001,3632.8,3632.7,9.85657341]
[1754058017315,0.01,3632.9,3632.8,2.75269764]
[1754058017834,1e-08,3632.9,3632.8,8.12142461]
[1754058017990,1e-08,3632.9,3632.8,8.09389764]
[1754058018550,1e-08,3632.9,3632.8,8.64389764]
[1754058019993,1e-08,3632.9,3632.8,13.26689764]
[1754058020190,1e-08,3632.9,3632.8,13.26589764]
[1754058020416,1e-08,3632.9,3632.8,13.40349764]
[1754058020903,0.001,3635.2,3635.1,2.75095595]
[1754058021291,0.001,3635.2,3635.1,2.88855595]
[1754058021543,0.001,3635.2,3635.1,7.50955595]
[1754058021841,0.001,3635.2,3635.1,9.40635595]
[1754058022417,0.001,3635.2,3635.1,7.50955595]
[1754058023007,0.001,3635.2,3635.1,9.40635595]
[1754058023253,0.3082232,3636.3,3635.1,10.6498]
[1754058023523,0.01,3636.9,3636.8,2.74967003]
[1754058023863,0.01,3636.9,3636.8,4.619]
[1754058024020,2.288,3636.9,3636.8,4.619]
[1754058024218,0.01,3636.9,3635.5,1.8968]
[1754058024420,0.4545,3636.9,3636.5,0.1376]
[1754058024635,2.278,3636.8,3636.6,4.619]
[1754058024834,2.278,3636.7,3636.5,0.1376]
[1754058025060,2.5068,3636.6,3636.2,0.1376]
[1754058025205,2.5068,3636.6,3636.3,4.618]
[1754058025409,2.278,3636.5,3636.4,4.618]
[1754058026210,0.4445,3636.5,3636.4,4.618]
[1754058026420,4.59310496,3636.9,3636.4,4.618]
[1754058026421,0.01,3636.9,3636.4,4.7556]
[1754058026727,0.01,3636.9,3636.8,2.74967003]
[1754058026926,0.01,3636.9,3636.3,0.1376]
[1754058027110,0.01,3636.9,3636.4,4.616]
[1754058027311,2.74997186,3636.5,3636.3,4.616]
[1754058027535,2.79551216,3636.8,3636.3,4.616]
[1754058027720,0.1376,3636.6,3636.3,4.616]
[1754058028042,0.1376,3636.4,3636.3,4.616]
[1754058028258,0.1376,3636.4,3635.8,0.1376]
[1754058028562,2.4156,3636.4,3635.9,4.616]
[1754058028713,0.24156,3636.3,3636.0,4.616]
[1754058028908,2.278,3636.3,3636.0,4.616]
[1754058029148,2.278,3636.2,3636.0,4.616]
[1754058029381,2.278,3636.2,3636.1,4.615]
[1754058029553,0.1376,3636.4,3636.1,4.615]
[1754058029753,0.1376,3636.4,3636.1,3.615]
[1754058030104,0.1376,3636.4,3636.2,1.8968]
[1754058030383,0.01,3636.9,3636.3,0.1376]
[1754058030541,2.88763451,3636.4,3635.8,0.1376]
[1754058030746,0.1376,3636.4,3635.8,0.1376]
[1754058030945,0.1376,3636.6,3636.1,0.1376]
[1754058031248,0.01,3636.9,3636.6,2.74974946]
[1754058031454,0.01,3636.9,3636.8,2.74967003]
[1754058031750,0.01,3636.9,3636.8,2.88727003]
[1754058031986,0.01,3636.9,3636.8,5.22847003]
[1754058032202,1e-08,3636.9,3636.8,8.22847003]
[1754058032481,1e-08,3636.9,3636.8,8.77847003]
[1754058032861,1e-08,3636.9,3636.8,8.22847003]
[1754058033480,1e-08,3636.9,3636.8,12.84147003]
[1754058033662,1e-08,3636.9,3636.8,13.39147003]
[1754058035905,1e-08,3636.9,3636.8,8.77847003]
[1754058036204,1e-08,3636.9,3636.8,13.38847003]
[1754058036500,1e-08,3636.9,3636.8,8.22847003]
[1754058036662,1e-08,3636.9,3636.8,7.49727003]
[1754058037288,1e-08,3636.9,3636.8,9.82807003]
[1754058037564,1e-08,3636.9,3636.8,13.37807003]
[1754058037791,1e-08,3636.9,3636.8,7.78797003]
[1754058037981,1e-08,3636.9,3636.8,10.49727003]
[1754058038278,1e-08,3636.9,3636.8,12.82807003]
[1754058038482,1e-08,3636.9,3636.8,13.37807003]
[1754058039163,1e-08,3636.9,3636.8,10.49527003]
[1754058039616,1e-08,3636.9,3636.8,12.39597003]
[1754058039782,1e-08,3636.9,3636.8,13.37607003]
[1754058040803,1e-08,3636.9,3636.8,12.82607003]
[1754058041024,1e-08,3636.9,3636.8,13.37607003]
[1754058042490,0.01,3637.9,3637.8,3.29891417]
[1754058042491,1e-08,3637.9,3637.8,3.29891417]
[1754058042667,1e-08,3637.9,3637.8,6.43651417]
[1754058042865,1e-08,3637.9,3637.8,11.04351417]
[1754058043102,1e-08,3637.9,3637.8,13.37431417]
[1754058044245,1e-08,3637.9,3637.8,13.37231417]
[1754058046168,0.01,3639.9,3639.8,2.7474037]
[1754058046377,0.01,3639.9,3639.8,7.3524037]
[1754058046661,2.3891,3639.9,3639.8,0.1376]
[1754058046818,2.3891,3639.9,3639.8,4.7416]
[1754058047020,2.3891,3639.9,3639.8,0.1376]
[1754058047272,2.3891,3639.9,3638.2,1.9007]
[1754058047273,2.74740988,3639.8,3639.6,0.1376]
[1754058047474,2.74740988,3639.8,3638.3,6.603]
[1754058047475,2.7475076,3639.7,3639.3,0.1376]
[1754058047784,2.3791,3639.7,3639.3,0.1376]
[1754058047976,2.74770566,3639.4,3639.3,0.1376]
[1754058048157,5.91767614,3639.4,3638.6,2.74829108]
[1754058048356,5.12689613,3639.3,3638.9,4.603]
[1754058048539,0.24911,3639.9,3639.4,2.74763423]
[1754058048740,2.3791,3639.8,3639.2,0.1376]
[1754058049086,2.3791,3639.8,3639.4,4.603]
[1754058049280,1.9169,3639.8,3639.6,2.74755467]
[1754058049442,0.01,3639.9,3639.8,2.7474037]
[1754058049645,0.01,3639.9,3639.7,2.88505982]
[1754058049845,2.3791,3639.8,3639.7,0.1376]
[1754058050040,2.3791,3639.8,3639.3,2.74772914]
[1754058050041,2.89282778,3639.8,3639.3,4.602]
[1754058050297,2.89282778,3639.8,3639.4,0.1376]
[1754058050298,0.4622,3639.7,3639.4,0.1376]
[1754058050576,1.9169,3639.6,3639.3,0.1376]
[1754058050798,0.1376,3639.8,3639.3,0.1376]
[1754058050944,2.3791,3639.5,3638.8,4.602]
[1754058051139,2.3791,3639.5,3639.1,0.1376]
[1754058051140,0.70354435,3639.4,3639.1,0.1376]
[1754058051353,2.88538116,3639.3,3638.7,4.601]
[1754058051649,2.3791,3639.2,3638.8,0.1376]
[1754058051979,2.9891221,3639.4,3638.6,7.34928611]
[1754058051980,0.01,3639.9,3639.6,2.74749192]
[1754058052187,0.01,3639.9,3639.8,2.7474037]
[1754058053682,0.01,3639.9,3639.8,7.3474037]
[1754058054379,0.01,3639.9,3639.8,12.6782037]
[1754058055600,0.001,3640.1,3640.0,2.74725274]
[1754058055902,0.4622,3642.0,3640.8,2.74664908]
[1754058056059,0.01,3642.9,3640.8,2.74664908]
[1754058056060,1.9169,3641.7,3640.8,10.34564908]
[1754058056403,1.9169,3641.7,3640.8,12.24634908]
[1754058056560,0.01,3641.9,3640.8,12.24634908]
[1754058056764,1.9269,3641.9,3640.8,12.24634908]
[1754058057078,0.4622,3641.7,3640.8,5.74664908]
[1754058057400,1.9169,3641.6,3640.8,5.95727027]
[1754058057701,1.9169,3641.6,3640.8,10.55527027]
[1754058057854,0.4622,3641.8,3640.8,12.45597027]
[1754058058260,1.9169,3641.7,3640.8,10.55527027]
[1754058058488,1.9169,3641.7,3640.8,12.45597027]
[1754058058805,0.4622,3641.3,3639.6,1.9007]
[1754058059128,2.74595655,3641.8,3640.8,2.74664908]
[1754058059394,0.4622,3641.4,3640.8,4.597]
[1754058059597,2.3891,3640.9,3640.8,4.596]
[1754058059758,2.3891,3640.9,3635.8,23.94172938]
[1754058059759,2.62801,3640.9,3640.3,4.596]
[1754058059966,0.4622,3640.8,3640.3,7.34300515]
[1754058060156,0.03433405,3640.7,3640.3,4.596]
[1754058060358,0.24891,3640.9,3640.2,4.596]
[1754058060359,2.3791,3640.6,3640.2,4.596]
[1754058060565,0.01,3640.9,3640.5,2.74680905]
[1754058060901,0.01,3640.9,3640.5,4.95627631]
[1754058061069,2.3791,3640.8,3639.6,0.20907417]
[1754058061263,2.3791,3640.8,3639.8,2.7474037]
[1754058061462,2.3791,3640.8,3639.9,4.596]
[1754058061687,0.23891,3640.7,3640.4,2.7469469]
[1754058061909,2.3791,3640.6,3639.6,0.20674788]
[1754058062118,0.01,3640.9,3640.8,2.74664908]
[1754058062618,0.01,3640.9,3640.8,0.1376]
[1754058062897,0.01,3640.9,3640.8,2.88424908]
[1754058063765,0.01,3640.9,3640.8,7.47924908]
[1754058064805,0.01,3640.9,3640.8,10.47924908]
[1754058065209,2.3093,3640.9,3640.8,2.74664908]
[1754058065372,0.01,3641.9,3641.8,2.74589488]
[1754058066212,0.01,3641.9,3641.8,7.33989488]
[1754058067324,1e-08,3641.9,3641.8,9.64249488]
[1754058067522,1e-08,3641.9,3641.8,12.64249488]
[1754058068189,1e-08,3641.9,3641.8,13.19249488]
[1754058068587,1e-08,3641.9,3641.8,7.59509488]
[1754058068921,1e-08,3641.9,3641.8,10.33789488]
[1754058069417,1e-08,3641.9,3641.8,5.74589488]
[1754058069617,1e-08,3641.9,3641.8,7.33789488]
[1754058069817,1e-08,3641.9,3641.8,2.74589488]
[1754058070017,1e-08,3641.9,3641.8,7.33789488]
[1754058070229,1e-08,3641.9,3641.8,9.18709488]
[1754058070448,1e-08,3641.9,3641.8,2.3026]
[1754058070650,1e-08,3641.9,3641.8,7.33789488]
[1754058070945,1e-08,3641.9,3641.8,12.64049488]
[1754058071157,1e-08,3641.9,3641.8,8.04849488]
[1754058071323,1e-08,3641.9,3641.8,12.63949488]
[1754058071818,1e-08,3641.9,3641.8,5.74589488]
[1754058072040,1e-08,3641.9,3641.8,10.33689488]
[1754058072256,1e-08,3641.9,3641.6,2.74603749]
[1754058072436,1e-08,3641.9,3641.8,7.33689488]
[1754058073007,0.47270001,3641.9,3641.7,2.74590698]
[1754058073321,2.2993,3641.8,3641.7,2.74597028]
[1754058073524,0.4727,3641.8,3641.2,4.59]
[1754058073745,1e-08,3641.9,3641.8,2.74589488]
[1754058074212,1e-08,3641.9,3641.8,7.33589488]
[1754058074406,2.29930001,3641.9,3641.4,4.59]
[1754058074625,2.2993,3641.8,3641.4,2.74617749]
[1754058074852,0.4727,3641.7,3641.4,2.74617749]
[1754058075151,1e-08,3641.9,3641.7,0.1376]
[1754058075308,1e-08,3641.9,3641.7,2.74596033]
[1754058075509,2.2993,3641.8,3641.3,4.59]
[1754058075707,2.2993,3641.7,3640.2,2.74707079]
[1754058076027,2.2993,3641.7,3639.3,7.421784]
[1754058076028,2.74630878,3641.3,3641.1,0.1376]
[1754058076209,2.74634735,3641.2,3640.5,2.74687128]
[1754058076409,2.74634735,3641.2,3640.4,4.589]
[1754058076410,5.04572278,3641.1,3641.0,0.1376]
[1754058076606,2.74663896,3640.9,3640.6,0.1376]
[1754058076853,2.2993,3641.0,3640.6,0.1396]
[1754058077059,5.04599492,3640.8,3640.6,0.002]
[1754058077222,2.2993,3640.8,3640.6,0.002]
[1754058077427,2.2993,3640.7,3640.6,0.002]
[1754058077637,0.1376,3640.9,3640.6,0.002]
[1754058077824,0.4727,3641.1,3640.6,0.002]
[1754058078042,0.00100001,3641.9,3641.5,2.7461211]
[1754058078043,0.4727,3641.6,3641.5,2.7461211]
[1754058078215,0.00100001,3641.9,3641.5,2.7461211]
[1754058078216,0.00100001,3641.9,3641.5,0.1376]
[1754058078416,0.00100001,3641.9,3641.8,2.74589488]
[1754058078638,0.00100001,3641.9,3641.8,2.88349488]
[1754058081144,0.00100001,3641.9,3641.8,0.1376]
[1754058081339,0.00100001,3641.9,3641.8,2.88349488]
[1754058081540,0.00100001,3641.9,3641.8,4.73269488]
[1754058081756,0.00100001,3641.9,3641.8,4.76015382]
[1754058082061,0.00100001,3641.9,3641.8,4.73269488]
[1754058082562,1e-08,3641.9,3641.8,5.21355382]
[1754058082919,1e-08,3641.9,3641.8,5.18609488]
[1754058083155,1e-08,3641.9,3641.8,2.88349488]
[1754058083543,1e-08,3641.9,3641.8,9.80055382]
[1754058083720,1e-08,3641.9,3641.8,9.77309488]
[1754058084120,1e-08,3641.9,3641.8,12.77309488]
[1754058084347,1e-08,3641.9,3641.8,7.73269488]
[1754058084623,1e-08,3641.9,3641.8,7.47049488]
[1754058084831,1e-08,3641.9,3641.8,2.88349488]
[1754058085040,1e-08,3641.9,3641.8,7.47049488]
[1754058085233,1e-08,3641.9,3641.8,2.88349488]
[1754058085624,1e-08,3641.9,3641.8,4.7236]
[1754058085820,0.47270001,3641.9,3641.8,7.46949488]
[1754058086021,2.29930001,3641.9,3640.6,0.002]
[1754058086236,0.1376,3641.7,3640.6,0.002]
[1754058086419,0.22993,3641.8,3640.6,0.002]
[1754058086420,2.74632914,3641.3,3640.6,0.002]
[1754058086621,2.74657364,3640.9,3640.6,0.002]
[1754058086936,2.74672453,3640.7,3640.6,0.002]
[1754058087462,5.21795858,3640.7,3640.6,0.002]
[1754058087618,5.98007808,3640.7,3640.6,0.002]
[1754058091584,2.4369,3640.7,3640.6,0.002]
[1754058092228,0.1376,3640.7,3640.6,0.002]
[1754058092570,5.18362453,3640.7,3640.6,0.002]
[1754058092936,2.4369,3640.7,3640.6,0.002]
[1754058093341,0.1376,3640.7,3640.6,0.002]
[1754058093647,2.4369,3640.7,3640.6,0.002]
[1754058093842,3.68840795,3640.7,3640.6,0.002]
[1754058094052,6.43513248,3640.7,3640.6,0.002]
[1754058094449,16.43513248,3640.7,3640.6,0.002]
[1754058095066,16.43513248,3640.7,3640.1,0.01]
[1754058095067,2.74695088,3640.4,3640.1,0.01]
[1754058095265,3.2971018,3640.2,3640.1,0.01]
[1754058095576,2.74785667,3639.2,3638.9,0.1376]
[1754058095733,7.33285667,3639.2,3637.5,1.8054]
[1754058095937,9.89765667,3639.2,3637.6,0.1376]
[1754058096151,2.74861195,3638.2,3637.3,2.74922332]
[1754058096373,2.88621195,3638.2,3637.1,0.01]
[1754058096705,6.33538456,3638.2,3637.1,0.01]
[1754058097269,2.74936764,3637.2,3637.1,0.01]
[1754058097576,4.7216,3637.2,3637.1,0.01]
[1754058097983,4.584,3637.3,3637.1,0.01]
[1754058098182,3.29811566,3637.2,3637.1,0.01]
[1754058098482,0.455,3638.1,3637.1,0.01]
[1754058098688,14.585,3638.3,3638.1,0.002]
[1754058099056,20.61589201,3638.2,3638.1,0.002]
[1754058099397,30.58153437,3638.2,3638.1,0.002]
[1754058099687,17.30983276,3638.2,3638.1,0.002]
[1754058100450,7.30983276,3638.2,3638.1,0.002]
[1754058100656,7.0122,3638.2,3638.1,0.002]
[1754058101092,0.455,3638.2,3638.1,0.002]
[1754058101298,4.585,3638.2,3638.1,0.002]
[1754058101679,10.0,3638.8,3638.1,0.002]
[1754058101680,10.0,3638.8,3638.1,1.8074]
[1754058101884,4.585,3638.7,3638.5,2.74832398]
[1754058102053,10.0,3638.8,3638.7,2.74823425]
[1754058102475,4.585,3639.2,3639.1,2.74793218]
[1754058102681,10.0,3639.7,3639.1,2.2695]
[1754058102865,11.001,3639.7,3638.5,0.4641]
[1754058103079,2.4272,3639.6,3638.7,2.74823425]
[1754058103283,2.4272,3639.6,3638.2,2.74858503]